bitfinex/quotes_ETHUSD_20240811
["timestamp","ask_amount","ask_price","bid_price","bid_amount"]
[1723339956853,2.66242,2629.2,2628.8,0.78066802]
[1723339957980,2.66242,2629.2,2628.8,0.85673822]
[1723339958176,5.66228,2629.4,2628.8,0.85673822]
[1723339958749,5.66228,2629.4,2628.8,3.51952822]
[1723339958952,5.66228,2629.4,2628.9,2.4048]
[1723339959199,5.66228,2629.4,2628.9,2.48086766]
[1723339961181,7.3,2629.8,2629.2,2.66237]
[1723339961182,9.9618,2629.8,2629.2,2.66237]
[1723339961354,9.9618,2629.8,2629.2,2.73842858]
[1723339961557,12.62367,2629.8,2629.2,2.73842858]
[1723339961869,2.66191,2629.7,2629.2,0.07605858]
[1723339962377,2.66191,2629.7,2629.2,0.85665044]
[1723339965181,2.6618,2629.8,2629.2,0.85665044]
[1723339965340,2.6618,2629.8,2629.2,3.51905044]
[1723339966082,2.6618,2629.8,2629.2,0.85665044]
[1723339967153,2.6618,2629.8,2629.2,3.51905044]
[1723339967359,2.6618,2629.8,2629.3,0.85862704]
[1723339968076,2.6618,2629.8,2629.4,2.4048]
[1723339969288,5.32367,2629.8,2629.4,2.4048]
[1723339969468,2.6618,2629.8,2629.4,2.4048]
[1723339970087,5.66164,2630.0,2629.4,5.14297858]
[1723339970295,2.66139,2630.2,2629.4,5.14297858]
[1723339970296,2.66139,2630.2,2629.6,5.06674]
[1723339970455,2.66139,2630.2,2629.7,0.07604616]
[1723339971484,2.66139,2630.2,2629.6,5.14278604]
[1723339971688,3.0,2630.1,2629.6,5.14278604]
[1723339972339,2.66139,2630.2,2629.6,5.14278604]
[1723339972496,2.66139,2630.2,2629.7,0.39709162]
[1723339973400,2.66123,2630.4,2629.9,2.4048]
[1723339974622,5.66104,2630.6,2630.1,2.4048]
[1723339974788,3.0,2630.5,2630.1,2.4048]
[1723339975233,15.62167,2630.8,2630.1,5.06628]
[1723339975523,2.6609,2630.7,2630.2,0.07603347]
[1723339975700,3.0,2630.6,2630.1,5.06628]
[1723339976106,2.6611,2630.5,2630.1,2.4048]
[1723339976307,2.6612,2630.4,2630.1,2.4048]
[1723339977290,8.32207,2630.6,2630.1,2.4048]
[1723339978628,2.6609,2630.7,2630.2,2.4823]
[1723339978829,2.6609,2630.7,2630.2,3.07270043]
[1723339980935,5.32186,2630.7,2630.2,2.99667]
[1723339981230,7.3,2630.8,2629.8,2.4823]
[1723339981412,2.66146,2630.2,2629.8,2.4823]
[1723339981606,2.6613,2630.3,2629.8,2.4823]
[1723339981821,5.32268,2630.3,2629.8,2.4823]
[1723339982135,2.66143,2630.2,2629.8,2.4823]
[1723339982725,5.32312,2630.1,2629.8,2.4823]
[1723339982932,2.66159,2630.0,2629.8,2.4823]
[1723339983298,2.66153,2630.1,2629.8,2.4823]
[1723339983723,2.66162,2630.0,2629.8,2.4823]
[1723339983931,2.66153,2630.1,2629.8,2.4823]
[1723339984634,2.61153,2630.1,2629.8,2.4823]
[1723339985337,2.61153,2630.1,2629.8,2.73053]
[1723339986352,2.66134,2630.3,2629.8,5.39231]
[1723339986517,2.66134,2630.3,2629.9,2.55833914]
[1723339986714,2.66094,2630.7,2630.1,2.4823]
[1723339986931,2.66094,2630.7,2630.3,2.4823]
[1723339987645,2.66116,2630.5,2630.1,2.4823]
[1723339989042,9.96084,2630.8,2630.1,2.4823]
[1723339989340,9.96084,2630.8,2630.1,5.14377]
[1723339989527,7.3,2630.8,2630.3,2.4823]
[1723339989843,7.3,2630.8,2630.5,2.4823]
[1723339990036,2.66069,2630.9,2630.5,2.4823]
[1723339990340,5.32147,2630.9,2630.5,2.73053]
[1723339990540,2.66069,2630.9,2630.5,2.73053]
[1723339991241,3.0,2631.0,2630.6,2.4823]
[1723339991536,9.96032,2631.3,2630.6,2.4823]
[1723339991537,5.66057,2631.1,2630.6,2.4823]
[1723339991839,5.66057,2631.1,2630.7,0.539155]
[1723339992006,8.32114,2631.1,2630.7,0.539155]
[1723339992207,2.66059,2631.0,2630.7,0.539155]
[1723339992439,2.66059,2631.0,2630.6,2.4823]
[1723339993803,2.66075,2630.9,2630.6,2.4823]
[1723339994810,8.32113,2631.1,2630.6,2.4823]
[1723339995017,2.66068,2630.9,2630.6,2.4823]
[1723339995439,2.66088,2630.7,2630.2,2.3617]
[1723339995640,2.66088,2630.7,2630.3,0.768454]
[1723339996317,5.66055,2631.1,2630.6,2.3617]
[1723339996827,3.0,2631.1,2630.6,5.09863582]
[1723339997025,3.0,2631.1,2630.7,2.3617]
[1723339997261,3.0,2631.2,2630.7,2.3617]
[1723339997460,3.0,2631.2,2630.7,3.13766758]
[1723339998246,3.0,2631.2,2630.7,5.79854758]
[1723339998575,3.0,2631.2,2630.8,2.3617]
[1723339999259,5.66035,2631.3,2630.8,2.3617]
[1723339999557,5.66035,2631.3,2630.8,2.94154876]
[1723339999763,3.0,2631.3,2630.8,2.94154876]
[1723339999924,2.66044,2631.2,2630.8,2.94154876]
[1723340000122,3.0,2631.1,2630.8,2.3617]
[1723340000432,2.66021,2631.4,2630.8,2.3617]
[1723340000626,3.0,2631.3,2630.8,2.3617]
[1723340000865,3.0,2631.3,2630.9,0.502255]
[1723340002252,2.66041,2631.2,2630.9,0.502255]
[1723340003726,2.66041,2631.2,2630.8,2.3617]
[1723340004328,2.66052,2631.1,2630.8,2.3617]
[1723340004639,2.66095,2630.7,2630.1,2.3617]
[1723340004848,2.66095,2630.7,2630.1,5.02319]
[1723340005152,2.66095,2630.7,2630.2,0.502319]
[1723340005756,5.32191,2630.7,2630.2,0.502319]
[1723340006728,2.66099,2630.6,2630.2,0.502319]
[1723340006928,2.66095,2630.7,2630.2,0.502319]
[1723340007532,2.66113,2630.5,2630.2,0.502319]
[1723340007755,2.66113,2630.5,2630.1,2.3617]
[1723340008763,2.66095,2630.7,2630.1,5.02319]
[1723340009869,2.66095,2630.7,2630.1,7.68461]
[1723340010068,2.66095,2630.7,2630.1,5.02312]
[1723340011077,2.66074,2630.9,2630.4,2.3617]
[1723340011256,9.96052,2631.1,2630.6,2.3617]
[1723340011257,7.3,2631.1,2630.6,2.3617]
[1723340011459,2.6606,2631.0,2630.6,2.3617]
[1723340012766,7.3,2631.1,2630.7,0.07601801]
[1723340012980,2.66044,2631.2,2630.8,2.3617]
[1723340013471,2.66044,2631.2,2630.8,2.43771313]
[1723340015165,2.66044,2631.2,2630.8,2.3617]
[1723340015474,2.66044,2631.2,2630.8,2.43771318]
[1723340016272,2.66044,2631.2,2630.8,2.3617]
[1723340016472,2.66044,2631.2,2630.8,2.4377132]
[1723340017076,2.66044,2631.2,2630.8,2.3617]
[1723340017077,5.32091,2631.2,2630.8,2.3617]
[1723340017276,2.66044,2631.2,2630.8,2.3617]
[1723340017575,2.66058,2631.0,2630.8,2.3617]
[1723340019074,2.66068,2630.9,2630.3,2.4966]
[1723340019262,2.66084,2630.8,2630.4,0.5660222]
[1723340019572,2.66068,2630.9,2630.4,0.64204613]
[1723340020078,5.32144,2630.9,2630.4,0.64204613]
[1723340020247,2.66068,2630.9,2630.4,0.64204613]
[1723340020447,2.66068,2630.9,2630.5,0.31386461]
[1723340020977,2.66079,2630.8,2630.5,0.31386461]
[1723340021178,2.66068,2630.9,2630.5,0.31386461]
[1723340022077,2.66081,2630.8,2630.5,0.31386461]
[1723340022675,2.66068,2630.9,2630.5,0.31386461]
[1723340022843,5.32106,2631.1,2630.6,2.4966]
[1723340023040,5.32106,2631.1,2630.6,2.57262388]
[1723340023484,2.6605,2631.1,2630.6,2.4966]
[1723340023778,2.6605,2631.1,2630.7,0.24966]
[1723340023984,5.32106,2631.1,2630.7,0.24966]
[1723340024279,2.6605,2631.1,2630.8,2.4966]
[1723340024642,5.66033,2631.3,2630.8,2.4966]
[1723340024986,2.66039,2631.2,2630.8,3.04492577]
[1723340026949,5.66033,2631.3,2630.8,3.04492577]
[1723340028179,8.32068,2631.3,2630.8,3.04492577]
[1723340028383,5.66033,2631.3,2630.8,3.04492577]
[1723340028688,8.32068,2631.3,2630.8,3.04492577]
[1723340029182,2.66039,2631.2,2630.8,3.04492577]
[1723340029478,2.66039,2631.2,2630.8,2.4966]
[1723340032372,6.63533,2631.3,2630.8,2.4966]
[1723340032774,9.29569,2631.3,2630.8,2.4966]
[1723340032973,2.6604,2631.2,2630.8,2.4966]
[1723340033955,2.66065,2631.0,2630.8,2.4966]
[1723340034165,3.63574,2630.9,2630.3,2.4966]
[1723340034460,2.66086,2630.8,2630.3,2.4966]
[1723340034675,2.66086,2630.8,2630.4,0.515792]
[1723340035256,3.63574,2630.9,2630.4,0.515792]
[1723340035678,6.2965,2630.9,2630.4,0.515792]
[1723340035877,3.63574,2630.9,2630.4,0.515792]
[1723340036159,5.66035,2631.3,2630.6,2.4252]
[1723340036410,5.66035,2631.3,2630.8,2.4252]
[1723340037088,5.66035,2631.3,2630.8,5.08598]
[1723340037293,5.66035,2631.3,2630.8,2.50121718]
[1723340038289,5.66035,2631.3,2630.8,2.4252]
[1723340038894,2.66038,2631.2,2630.8,2.4252]
[1723340039190,5.66035,2631.3,2630.8,2.4252]
[1723340039191,2.66049,2631.1,2630.8,2.4252]
[1723340039391,2.66049,2631.1,2630.5,2.66102]
[1723340039392,5.32104,2631.1,2630.6,2.4252]
[1723340039612,5.32104,2631.1,2630.4,2.4252]
[1723340039613,0.975,2630.8,2630.4,2.4252]
[1723340039761,2.66125,2630.4,2629.6,3.4002]
[1723340040091,3.63625,2630.4,2629.8,5.08693]
[1723340040296,0.975,2630.4,2629.9,2.66167]
[1723340040658,3.63599,2630.6,2630.0,2.66157]
[1723340041095,6.63583,2630.8,2630.1,5.16270789]
[1723340041306,1.31567117,2630.7,2630.1,5.16270789]
[1723340041627,6.63583,2630.8,2630.1,5.16270789]
[1723340041946,6.63583,2630.8,2630.1,7.82407789]
[1723340041947,5.66083,2630.8,2630.1,7.82407789]
[1723340042231,5.66083,2630.8,2630.2,0.84640846]
[1723340042521,5.66083,2630.8,2630.2,0.92243827]
[1723340042522,2.66089,2630.7,2630.2,0.92243827]
[1723340042679,3.0,2630.6,2630.2,0.92243827]
[1723340042880,5.66083,2630.8,2630.2,0.92243827]
[1723340043425,5.66083,2630.8,2630.3,2.4252]
[1723340044085,8.32169,2630.8,2630.3,2.4252]
[1723340044519,5.66083,2630.8,2630.3,2.4252]
[1723340044699,3.0,2630.8,2630.3,2.4252]
[1723340044879,2.66119,2630.4,2629.8,2.4252]
[1723340045084,2.66119,2630.4,2629.8,5.08693]
[1723340045283,2.66119,2630.4,2629.8,2.4252]
[1723340045784,2.66119,2630.4,2629.9,0.07603868]
[1723340045985,2.66119,2630.4,2629.9,0.59234355]
[1723340046330,2.66119,2630.4,2629.9,0.51630487]
[1723340047106,2.66132,2630.3,2629.9,0.51630487]
[1723340047305,2.66119,2630.4,2629.9,0.51630487]
[1723340049104,2.66136,2630.3,2629.9,0.51630487]
[1723340049310,2.66136,2630.3,2630.0,0.29415049]
[1723340049600,2.66119,2630.4,2629.9,0.51630487]
[1723340049804,2.66145,2630.2,2629.8,2.4252]
[1723340050394,2.66162,2630.0,2629.8,2.4252]
[1723340050620,2.66162,2630.0,2629.4,2.4252]
[1723340050932,4.6034,2630.5,2629.4,2.933941]
[1723340050933,2.66197,2629.7,2629.4,2.933941]
[1723340051143,2.66197,2629.7,2629.4,2.4252]
[1723340051524,2.66186,2629.8,2629.4,2.4252]
[1723340051733,5.32373,2629.8,2629.4,2.4252]
[1723340052259,2.66186,2629.8,2629.4,2.4252]
[1723340052927,5.66142,2630.2,2629.5,0.07606092]
[1723340053130,3.0,2630.2,2629.7,2.4252]
[1723340053326,5.6614,2630.2,2629.7,2.4252]
[1723340053558,2.6615,2630.1,2629.7,2.66772]
[1723340053863,2.6615,2630.1,2629.3,2.66225]
[1723340053864,5.32348,2629.9,2629.4,2.4252]
[1723340054225,2.6617,2629.9,2629.4,2.4252]
[1723340054557,5.32348,2629.9,2629.4,2.4252]
[1723340056186,2.66182,2629.8,2629.4,2.4252]
[1723340056374,2.66182,2629.8,2629.4,2.66772]
[1723340057077,2.6617,2629.9,2629.4,2.66772]
[1723340057374,2.66154,2630.1,2629.5,5.4001561]
[1723340057574,3.0,2630.0,2629.7,2.66189]
[1723340057780,3.0,2630.1,2629.8,2.711689]
[1723340058072,3.0,2630.1,2629.8,2.78773213]
[1723340058460,5.66151,2630.1,2629.5,2.4455]
[1723340058662,2.66169,2629.9,2629.5,2.4455]
[1723340059688,5.66151,2630.1,2629.5,2.4455]
[1723340060251,3.0,2630.1,2629.6,0.07605095]
[1723340060502,3.0,2630.2,2629.7,2.66183]
[1723340060850,3.0,2630.2,2629.8,2.5215417]
[1723340062367,3.0,2630.2,2629.8,2.4455]
[1723340062572,3.0,2630.2,2629.8,2.52154182]
[1723340062885,3.0,2630.2,2629.9,0.51833718]
[1723340065168,3.0,2630.3,2629.9,0.51833718]
[1723340066975,5.66135,2630.3,2629.9,0.51833718]
[1723340067168,5.66135,2630.3,2629.8,2.4455]
[1723340068071,2.66146,2630.2,2629.8,2.4455]
[1723340068417,2.66155,2630.1,2629.8,2.4455]
[1723340068710,2.66146,2630.2,2629.8,2.4455]
[1723340068867,2.66174,2629.9,2629.5,2.4455]
[1723340070589,5.32352,2629.9,2629.5,2.4455]
[1723340070898,2.66174,2629.9,2629.5,2.4455]
[1723340077683,3.63774,2629.9,2629.5,2.4455]
[1723340078810,0.976,2629.9,2629.5,2.4455]
[1723340079112,5.66161,2630.0,2629.6,0.510763]
[1723340079481,7.3,2630.2,2629.6,0.510763]
[1723340079482,7.3,2630.2,2629.7,2.48905543]
[1723340079818,2.4769,2630.9,2630.3,2.413]
[1723340079819,0.976,2630.9,2630.3,2.413]
[1723340079993,3.63674,2630.9,2630.3,5.1502579]
[1723340080514,2.6603,2631.3,2630.6,2.66091]
[1723340080689,2.66011,2631.5,2630.8,2.413]
[1723340080889,2.66011,2631.5,2630.8,5.68634216]
[1723340080890,3.97561113,2631.4,2630.8,5.68634216]
[1723340081118,0.976,2631.1,2630.5,2.413]
[1723340081339,2.66075,2630.9,2630.5,2.413]
[1723340081543,2.66083,2630.8,2630.5,2.413]
[1723340081913,2.66075,2630.9,2630.5,2.413]
[1723340085114,2.66085,2630.8,2630.5,2.413]
[1723340085524,5.32128,2631.0,2630.5,2.413]
[1723340086044,2.66069,2630.9,2630.5,2.413]
[1723340086829,2.66062,2631.0,2630.5,2.413]
[1723340087035,5.66039,2631.2,2630.6,0.31731989]
[1723340087242,5.66039,2631.2,2630.6,2.97822989]
[1723340087425,5.66039,2631.2,2630.7,2.413]
[1723340087626,5.66039,2631.2,2630.7,2.48901731]
[1723340087819,5.66039,2631.2,2630.7,2.413]
[1723340088623,3.0,2631.2,2630.8,0.07601485]
[1723340088843,3.0,2631.2,2630.8,0.51499248]
[1723340091894,5.66039,2631.2,2630.8,0.51499248]
[1723340092608,3.0,2631.2,2630.8,0.51499248]
[1723340092768,5.66034,2631.3,2630.8,0.51499248]
[1723340093072,5.66034,2631.3,2630.9,0.29279925]
[1723340095774,3.0,2631.3,2630.9,0.29279925]
[1723340096893,5.66028,2631.3,2630.9,0.29279925]
[1723340098419,3.0,2631.3,2630.9,0.29279925]
[1723340098717,3.0,2631.3,2631.0,2.3914]
[1723340098910,3.0,2631.3,2631.0,2.71131917]
[1723340100217,2.66001,2631.6,2631.0,5.37186917]
[1723340100383,2.66001,2631.6,2631.0,2.78733028]
[1723340100588,2.66016,2631.5,2631.0,2.78733028]
[1723340100787,2.66016,2631.5,2631.0,2.71131917]
[1723340101001,2.66016,2631.5,2631.1,0.56647884]
[1723340101615,3.0,2631.4,2631.1,0.64248368]
[1723340101821,2.65998,2631.6,2631.2,2.3914]
[1723340101822,3.0,2631.5,2631.2,2.3914]
[1723340102585,2.66019,2631.4,2631.2,2.3914]
[1723340103320,2.66019,2631.4,2631.2,2.66253192]
[1723340105409,1.00996856,2631.3,2631.0,2.3914]
[1723340105610,3.67027856,2631.3,2631.0,2.3914]
[1723340105811,1.00996856,2631.3,2631.0,2.3914]
[1723340106299,3.67024856,2631.3,2631.0,2.3914]
[1723340106504,2.66038,2631.2,2631.0,2.3914]
[1723340106830,0.03492912,2631.1,2631.0,2.3914]
[1723340107133,3.0,2631.5,2631.0,2.63054]
[1723340107443,3.0,2631.5,2631.0,5.29112]
[1723340107675,0.0349994,2631.4,2631.0,5.29112]
[1723340108073,0.0349994,2631.4,2631.1,2.73647348]
[1723340108239,0.0349994,2631.4,2631.2,2.3914]
[1723340109172,5.66009,2631.5,2631.2,2.3914]
[1723340109353,0.03501929,2631.3,2631.2,2.3914]
[1723340109557,3.6352,2631.4,2631.2,2.3914]
[1723340109869,2.69526744,2631.3,2630.9,2.3914]
[1723340110186,0.975,2631.2,2630.9,2.3914]
[1723340110349,1.01001655,2631.2,2630.9,2.3914]
[1723340112042,0.03501655,2631.2,2630.9,2.3914]
[1723340112378,0.03494026,2631.1,2630.9,2.9232245]
[1723340112539,2.66034,2631.3,2630.9,2.3914]
[1723340112736,0.03495999,2631.2,2630.9,2.3914]
[1723340112943,2.66038,2631.2,2630.9,2.3914]
[1723340113174,2.6953936,2631.1,2630.9,2.3914]
[1723340113578,2.66058,2631.0,2630.9,2.3914]
[1723340113776,2.66058,2631.0,2630.2,10.98637]
[1723340113777,2.66098,2630.6,2630.5,2.3914]
[1723340113951,2.66098,2630.6,2630.1,2.3914]
[1723340114145,2.66119,2630.4,2630.1,2.3914]
[1723340114569,2.6958741,2630.3,2630.1,2.3914]
[1723340114769,0.0345841,2630.3,2630.1,2.3914]
[1723340114941,2.66109,2630.5,2630.1,2.3914]
[1723340115140,0.03450819,2630.4,2630.1,2.3914]
[1723340117407,2.69569819,2630.4,2630.1,2.3914]
[1723340118096,2.66129,2630.3,2629.7,2.4821]
[1723340118301,2.66129,2630.3,2629.8,0.780597]
[1723340118599,0.03567495,2630.2,2629.8,3.442377]
[1723340118794,3.0,2630.4,2629.8,3.442377]
[1723340119008,0.03565381,2630.1,2629.8,3.442377]
[1723340119184,3.0,2630.4,2629.9,0.5924477]
[1723340119493,0.03565381,2630.1,2629.9,0.5924477]
[1723340119655,3.0,2630.4,2629.9,0.5924477]
[1723340120002,5.66121,2630.4,2629.9,0.5924477]
[1723340120212,2.66254,2629.1,2628.6,2.4821]
[1723340120804,2.66251,2629.1,2628.6,2.4821]
[1723340121003,2.66251,2629.1,2628.7,0.514514]
[1723340121498,3.0,2629.0,2628.6,2.4821]
[1723340121788,2.66278,2628.9,2628.6,2.4821]
[1723340123532,2.66283,2628.8,2628.6,2.4821]
[1723340123684,2.66278,2628.9,2628.6,2.4821]
[1723340126472,2.66282,2628.8,2628.6,2.4821]
[1723340126598,2.66282,2628.8,2628.2,2.4821]
[1723340126793,2.66282,2628.8,2628.3,0.514555]
[1723340129434,7.3,2629.3,2628.8,2.4821]
[1723340129732,3.0,2629.2,2628.8,2.4821]
[1723340130348,7.3,2629.3,2628.8,2.4821]
[1723340130640,7.3,2629.3,2629.0,2.66258]
[1723340130951,7.3,2629.3,2629.1,2.4821]
[1723340131099,2.66185,2629.8,2629.1,2.4821]
[1723340131301,2.66201,2629.6,2629.1,2.4821]
[1723340131718,2.66201,2629.6,2629.1,2.7817594]
[1723340132004,0.10032212,2629.5,2629.1,2.7817594]
[1723340133242,0.10032212,2629.5,2629.2,2.73845104]
[1723340133438,3.0,2629.7,2629.2,2.73845104]
[1723340133653,2.66145,2630.2,2629.5,2.4821]
[1723340133986,2.66145,2630.2,2629.6,3.25240562]
[1723340134150,12.62251,2630.4,2629.7,2.66188]
[1723340134299,9.96123,2630.4,2629.7,2.66188]
[1723340134494,9.96123,2630.4,2629.6,3.25240562]
[1723340134495,2.66139,2630.2,2629.6,3.25240562]
[1723340134729,2.66139,2630.2,2629.7,0.57345056]
[1723340135332,2.66103,2630.6,2629.8,2.57334434]
[1723340135569,2.66103,2630.6,2629.9,2.73766047]
[1723340136666,3.0,2630.5,2629.9,2.73766047]
[1723340136872,5.66109,2630.5,2630.0,0.78966805]
[1723340137571,3.0,2630.5,2630.0,0.78966805]
[1723340138147,2.66081,2630.8,2630.0,0.78966805]
[1723340138464,2.66081,2630.8,2630.2,2.66138]
[1723340138766,2.66106,2630.6,2630.1,2.4973]
[1723340140142,2.6611,2630.5,2630.1,2.4973]
[1723340140627,5.32187,2630.7,2630.1,2.4973]
[1723340140827,2.66105,2630.6,2630.2,0.24973]
[1723340141226,2.6611,2630.5,2630.1,2.4973]
[1723340142058,2.66126,2630.4,2630.1,2.4973]
[1723340142677,2.6611,2630.5,2630.1,2.4973]
[1723340142850,5.32228,2630.5,2630.1,2.4973]
[1723340143049,2.6611,2630.5,2630.1,2.4973]
[1723340144077,0.09791445,2630.4,2630.1,2.4973]
[1723340144252,0.09791445,2630.4,2630.1,3.013199]
[1723340147081,5.32186,2630.7,2630.1,3.013199]
[1723340147282,5.341,2631.0,2630.2,2.66139]
[1723340147283,0.09789731,2630.3,2630.2,2.66139]
[1723340147452,2.66076,2630.9,2630.5,2.4973]
[1723340147453,3.0,2630.8,2630.5,2.4973]
[1723340148089,2.6609,2630.7,2630.5,2.4973]
[1723340148285,2.6609,2630.7,2630.1,2.66148]
[1723340148286,2.66098,2630.6,2630.0,2.4973]
[1723340148467,2.6611,2630.5,2630.0,5.61348398]
[1723340148866,5.32187,2630.7,2630.0,5.61348398]
[1723340149077,2.6609,2630.7,2630.0,8.27501398]
[1723340149787,3.0,2630.8,2630.2,5.15862]
[1723340150615,5.6608,2630.8,2630.2,5.15862]
[1723340152419,2.66091,2630.7,2630.2,5.15862]
[1723340153406,2.66091,2630.7,2630.2,2.57332858]
[1723340155410,2.66091,2630.7,2630.2,2.4973]
[1723340159005,2.66111,2630.5,2630.2,2.4973]
[1723340159399,0.09804514,2630.4,2630.2,2.4973]
[1723340160425,2.66129,2630.3,2630.2,2.4973]
[1723340160606,2.759252,2630.3,2630.1,2.256]
[1723340161131,3.01496829,2630.3,2629.7,2.256]
[1723340161285,0.097962,2630.3,2629.7,2.256]
[1723340161484,2.66135,2630.3,2629.7,4.91786]
[1723340161727,2.75931983,2630.2,2629.7,5.409646]
[1723340162223,2.75931983,2630.2,2629.7,2.747786]
[1723340162801,2.66149,2630.1,2629.7,2.747786]
[1723340163153,0.09785449,2630.0,2629.7,2.747786]
[1723340163425,5.32287,2630.2,2629.7,2.747786]
[1723340163727,0.09783735,2629.9,2629.7,2.256]
[1723340163919,2.6614,2630.2,2629.7,2.256]
[1723340164133,5.32287,2630.2,2629.7,2.256]
[1723340164335,0.09787163,2630.1,2629.7,2.256]
[1723340165402,2.75937163,2630.1,2629.7,2.256]
[1723340165820,0.09787163,2630.1,2629.7,2.256]
[1723340167909,2.75939163,2630.1,2629.7,2.256]
[1723340169068,0.09787163,2630.1,2629.7,2.256]
[1723340169358,0.09787163,2630.1,2629.7,3.014004]
[1723340170125,2.66161,2630.0,2629.7,3.014004]
[1723340170330,2.66161,2630.0,2629.7,2.256]
[1723340170627,0.09783735,2629.9,2629.7,2.256]
[1723340171243,2.66207,2629.6,2629.4,2.256]
[1723340171451,2.6621,2629.5,2629.4,2.256]
[1723340171665,2.75976917,2629.5,2629.4,2.256]
[1723340172033,0.09766917,2629.5,2629.4,2.256]
[1723340173568,0.09766917,2629.5,2629.0,2.6626]
[1723340173774,0.09766917,2629.5,2629.1,2.788522]
[1723340175469,2.75977917,2629.5,2629.1,2.788522]
[1723340177835,2.66222,2629.4,2628.8,2.4332]
[1723340178039,0.09765202,2629.4,2628.8,2.4332]
[1723340178374,2.66255,2629.1,2628.8,2.4332]
[1723340178752,0.09738415,2629.0,2628.8,2.4332]
[1723340179060,0.09738415,2629.0,2628.6,2.4332]
[1723340179061,2.76000415,2629.0,2628.6,2.4332]
[1723340179262,2.76000415,2629.0,2628.6,2.942824]
[1723340179463,0.09738415,2629.0,2628.6,2.942824]
[1723340181371,2.76001415,2629.0,2628.6,2.4332]
[1723340182937,2.66272,2628.9,2628.6,2.4332]
[1723340183372,0.0967805,2628.8,2628.6,2.4332]
[1723340187862,0.0967805,2628.8,2628.4,2.4332]
[1723340188062,0.0967805,2628.8,2628.4,2.699524]
[1723340191889,0.0967805,2628.8,2628.4,2.69861745]
[1723340193213,2.66298,2628.7,2628.4,2.43229345]
[1723340193373,2.66298,2628.7,2628.1,2.66347]
[1723340193581,2.66302,2628.6,2628.1,2.66347]
[1723340193899,2.75955254,2628.6,2628.1,2.66347]
[1723340194243,2.75955254,2628.6,2628.1,3.25579053]
[1723340195138,2.75955254,2628.6,2628.1,5.73999053]
[1723340195922,2.66312,2628.5,2628.1,3.07652053]
[1723340196092,2.66322,2628.4,2627.9,3.25973532]
[1723340196307,2.66322,2628.4,2627.8,2.4842]
[1723340196308,2.75971822,2628.4,2627.8,2.4842]
[1723340196613,0.09649822,2628.4,2628.0,2.66357]
[1723340196992,0.09649822,2628.4,2628.1,2.56029046]
[1723340197196,10.93964,2629.0,2628.4,2.66312]
[1723340197429,2.75913021,2628.9,2628.5,0.07607941]
[1723340198596,2.75913021,2628.9,2628.3,5.14751]
[1723340198815,2.75913021,2628.9,2628.3,5.928608]
[1723340199022,0.09642021,2628.9,2628.4,2.66318]
[1723340199208,0.09642021,2628.9,2628.4,0.07608081]
[1723340199617,2.75915021,2628.9,2628.4,0.07608081]
[1723340200612,0.09642021,2628.9,2628.4,0.07608081]
[1723340202050,0.09642021,2628.9,2628.4,2.73928081]
[1723340202958,0.09642021,2628.9,2628.4,0.07608081]
[1723340204066,2.75915021,2628.9,2628.3,5.928548]
[1723340205862,0.09642021,2628.9,2628.3,8.591798]
[1723340206062,0.09642021,2628.9,2628.8,2.4842]
[1723340206361,3.0,2629.2,2628.8,2.4842]
[1723340206662,5.66241,2629.2,2628.8,2.4842]
[1723340206868,0.0953624,2629.1,2628.8,2.4842]
[1723340207235,0.0953624,2629.1,2628.6,2.4842]
[1723340207561,0.0953624,2629.1,2628.6,3.16664392]
[1723340207562,2.66263,2629.0,2628.6,3.16664392]
[1723340207761,1.0723624,2629.1,2628.6,2.4842]
[1723340208065,0.09534525,2629.0,2628.6,5.1472]
[1723340209383,2.75796525,2629.0,2628.6,2.4842]
[1723340210091,0.09534525,2629.0,2628.6,2.4842]
[1723340211669,0.09534525,2629.0,2628.6,5.14721]
[1723340212086,0.09534525,2629.0,2628.6,2.4842]
[1723340213280,0.09534525,2629.0,2628.6,5.1472]
[1723340214493,0.09534525,2629.0,2628.7,2.66289]
[1723340214792,0.09534525,2629.0,2628.8,2.66281]
[1723340215150,0.977,2629.5,2629.0,2.4167]
[1723340215346,0.977,2629.7,2629.0,2.49276469]
[1723340215655,0.977,2629.7,2629.3,2.66223]
[1723340216074,7.3,2630.1,2629.7,2.66187]
[1723340216366,2.66123,2630.4,2629.8,2.73781276]
[1723340216572,0.977,2630.3,2629.8,2.73781276]
[1723340217430,0.977,2630.3,2629.8,2.66177]
[1723340217917,3.977,2630.3,2629.8,2.66177]
[1723340218530,6.63832,2630.3,2629.7,0.07604265]
[1723340218884,0.09281228,2630.2,2629.7,0.07604265]
[1723340219283,0.09281228,2630.2,2629.7,2.73787265]
[1723340219484,0.09281228,2630.2,2629.8,0.07604272]
[1723340219787,3.977,2630.3,2629.8,0.07604272]
[1723340219993,0.09279964,2630.1,2629.8,0.07604272]
[1723340220197,0.09281678,2630.2,2629.8,0.07604272]
[1723340220418,3.977,2630.3,2629.8,0.07604272]
[1723340220419,0.0927825,2630.0,2629.8,0.07604272]
[1723340220626,3.977,2630.3,2629.8,0.07604272]
[1723340220916,6.6383,2630.3,2629.8,0.07604272]
[1723340221140,0.09281678,2630.2,2629.7,2.66183]
[1723340221488,0.09281678,2630.2,2629.8,0.07604277]
[1723340221735,6.6383,2630.3,2629.8,0.07604277]
[1723340221888,0.09279964,2630.1,2629.8,0.07604277]
[1723340222091,6.6383,2630.3,2629.8,0.07604277]
[1723340222284,0.0927825,2630.0,2629.8,0.07604277]
[1723340222596,6.6383,2630.3,2629.9,2.4167]
[1723340223000,3.0,2630.3,2629.9,2.4167]
[1723340223206,0.977,2630.4,2629.9,2.4167]